Cogmind - Beta 15 @@@ ROGUE MODE // 2025.07.24 @ 23:44:06 Player: Clong Result: Smashed by cave-in Performance ------------- Evolutions (0) 0 Regions Visited (4) 800 Robots Destroyed (1) 5 Value Destroyed (5) 5 Prototype IDs (0) 0 Alien Tech Used (0) 0 Bonus (-12) -12 TOTAL SCORE: 798 Bonus ------- Friendly Fire -12 Cogmind --------- Core Integrity 0/250 Matter 169/300 Energy 200/200 System Corruption 1% Temperature Cool (0) Movement Core (100) Ox1 Location -9/Mines Parts ------- > --- POWER (1) -------- (None) > --- PROPULSION (2) --- (None) > --- UTILITY (2) ------ Small Storage Unit Small Battery > --- WEAPON (2) ------- (None) > --- INVENTORY (8) ---- Aluminum Leg Targeting Computer Katana Peak State ------------ > --- POWER ------------ Ion Engine > --- PROPULSION ------- Light Treads Light Treads > --- UTILITY ---------- Small Storage Unit > --- WEAPON ----------- Grenade Launcher Rocket Launcher > --- INVENTORY -------- Aluminum Leg Targeting Computer EM Pulse Gun Medium Laser Assault Rifle Assault Rifle Light Assault Rifle Katana [Rating: 8] Favorites ----------- Power Ion Engine Engine Ion Engine Propulsion Light Treads Treads Light Treads Leg Aluminum Leg Utility Small Storage Unit Storage Small Storage Unit Processor Targeting Computer Weapon Grenade Launcher Energy Gun EM Pulse Gun Ballistic Gun Assault Rifle Launcher Grenade Launcher Slashing Weapon Katana Build | -11 -10 -10 -10 -9 ------- Run | Yrd Mat Min Exi Min Slots Evolved . | . . . . . Power . | . . . . . Propulsion . | . . . . . Utility . | . . . . . Weapon . | . . . . . Parts Attached 15 | 7 3 1 1 3 Power 1 | 1 . . . . Engine 1 | 1 . . . . Core . | . . . . . Reactor . | . . . . . Propulsion 3 | 3 . . . . Treads 2 | 2 . . . . Leg 1 | 1 . . . . Wheel . | . . . . . Hover . | . . . . . Flight . | . . . . . Utility 3 | 1 1 . 1 . Device . | . . . . . Storage 2 | 1 . . 1 . Processor 1 | . 1 . . . Hackware . | . . . . . Protection . | . . . . . Artifact . | . . . . . Weapon 8 | 2 2 1 . 3 Energy Gun 2 | 1 1 . . . Energy Cannon . | . . . . . Ballistic Gun 3 | 1 . . . 2 Ballistic Cannon . | . . . . . Launcher 2 | . 1 1 . . Special Weapon . | . . . . . Impact Weapon . | . . . . . Slashing Weapon 1 | . . . . 1 Piercing Weapon . | . . . . . Special Melee Weapon . | . . . . . Unidentified Prototypes . | . . . . . Parts Lost 7 | . . 1 . 6 Power 1 | . . . . 1 Propulsion 1 | . . . . 1 Utility 1 | . . 1 . . Weapon 4 | . . . . 4 Highest Loss Streak 6 | . . 1 . 6 To Critical Strikes . | . . . . . Average Backups 4 | 1 3 5 5 4 Power . | . . . . . Propulsion . | . 1 1 1 1 Utility . | . . 1 1 1 Weapon 3 | . 2 3 3 2 Tool/Special . | . . . . . Unused Backups 2 | . . . 1 1 Power 1 | . . . 1 . Propulsion . | . . . . . Utility 1 | . . . . 1 Weapon . | . . . . . Tool/Special . | . . . . . Average Slot Usage (%) 80 | . 87 85 72 82 Engine 13 | . 14 14 14 12 Treads 19 | . 28 22 14 14 Storage 15 | . 14 14 15 28 Processor 2 | . 2 5 . . Energy Gun 5 | . 14 8 . . Launcher 21 | . 8 19 28 21 Peak Build Rating 8 | 6 7 8 7 8 Average Rating 6 | 4 6 6 6 6 On Entrance 5 | . 6 7 6 7 Naked Turns . | . . . . . Heaviest Build 18 | 14 15 17 18 18 Greatest Support 40 | 40 40 40 20 20 Greatest Overweight (x) 5 | . . 5 . 2 Average Overweight (x) . | . . . . . Largest Inventory Capacity 8 | 8 8 8 8 8 Average Capacity 7 | 6 8 8 8 8 Most Carried 8 | 4 6 8 6 6 Average Carried 4 | 1 3 5 5 4 Final Capacity 8 | 8 8 8 8 8 Final Carried 6 | 2 6 5 5 3 Class Distribution -------------------- 100% | Mutant Dominant Class ---------------- Mutant | -10/Materials Mutant | -10/Mines Mutant | -10/Exiles Mutant | -9/Mines Resources | -11 -10 -10 -10 -9 ----------- Run | Yrd Mat Min Exi Min Matter Collected 412 | 141 166 22 . 83 Remotely . | . . . . . Salvage Created 60 | . 19 . . 41 Parts 1 | . 1 . . . Haulers Intercepted . | . . . . . Recyclers Shooed . | . . . . . Parts Field Recycled . | . . . . . Retrieved Matter . | . . . . . Parts Self-Destructed . | . . . . . Prevented . | . . . . . Kills | -11 -10 -10 -10 -9 ------- Run | Yrd Mat Min Exi Min Combat Hostiles Destroyed 9 | . . . . 9 Guns 1 | . . . . 1 AOE 8 | . . . . 8 Classes Destroyed 2 | . 1 . . 1 Builder 1 | . 1 . . . Assembled 9 | . . . . 9 Best Kill Streak 9 | . 1 . . 9 Combat Bots Only 9 | . . . . 9 Max Kills in Single Turn 3 | . 1 . . 3 Gunslinging . | . . . . . Exploded 3 | . . . . 3 Melee . | . . . . . Uniques/NPCs Destroyed . | . . . . . Combat | -11 -10 -10 -10 -9 -------- Run | Yrd Mat Min Exi Min Hostile Shots Fired 31 | . . . . 31 Missed 10 | . . . . 10 Hits 21 | . . . . 21 Melee 2 | . . . . 2 Projectile 19 | . . . . 19 AOE 11 | . . . . 11 Damage Taken 848 | . 48 99 . 701 Core 264 | . 24 . . 240 Absorbed by Shields . | . . . . . Core Remaining (%) 100 | 100 . . . . Volleys Fired 19 | . 5 4 . 10 Largest 2 | . 2 2 . 2 Hottest 70 | . 70 70 . 63 Shots Fired 30 | . 8 8 . 14 Gun 15 | . 6 3 . 6 Cannon . | . . . . . Launcher 15 | . 2 5 . 8 Special . | . . . . . Kinetic 9 | . 3 . . 6 Thermal 1 | . 1 . . . Explosive 15 | . 2 5 . 8 Electromagnetic 5 | . 2 3 . . Robot Hit Streak 5 | . 5 . . 5 Robot Miss Streak 1 | . 1 . . 1 Penetration Max . | . . . . . Secondary Targets . | . . . . . Shots Hit Robots 10 | . 5 . . 5 Core Hits 20 | . 2 1 . 17 Critical Kills . | . . . . . Critical Parts Destroyed 1 | . 1 . . . Critical Strikes 1 | . 1 . . . Destroy 1 | . 1 . . . Melee Attacks . | . . . . . Impact . | . . . . . Slashing . | . . . . . Piercing . | . . . . . Sneak Attacks . | . . . . . Combat Hostiles . | . . . . . Follow-up Attacks . | . . . . . Damage Inflicted 665 | . 98 20 . 547 Guns 96 | . 53 . . 43 Cannons . | . . . . . Explosions 561 | . 45 12 . 504 Melee . | . . . . . Ramming 8 | . . 8 . . Kinetic 68 | . 25 . . 43 Thermal 13 | . 13 . . . Explosive 561 | . 45 12 . 504 Electromagnetic 15 | . 15 . . . Impact . | . . . . . Slashing . | . . . . . Piercing . | . . . . . Highest Corruption 1 | . . 1 1 1 Average Corruption 1 | . . 1 1 1 Corruption Purged . | . . . . . Corruption Blocked . | . . . . . Effects 10 | . . 1 7 2 Message Errors 4 | . . . 4 . Matter Fused 2 | . . . 1 1 Heat Flow Errors 3 | . . . 2 1 Data Loss (major) 1 | . . 1 . . Overload Shots . | . . . . . Overflow Damage 5 | . . 4 . 1 Projectiles . | . . . . . Explosions 5 | . . 4 . 1 Melee . | . . . . . Knockbacks . | . . . . . Impact . | . . . . . Kinetic . | . . . . . Secondary . | . . . . . Self-Inflicted Damage 137 | . 48 51 . 38 Shots 4 | . 1 2 . 1 Rammed 1 | . . 1 . . Targets Rammed 1 | . . 1 . . Kicked . | . . . . . Crushed . | . . . . . Highest Temperature 256 | . 9 18 256 140 Average Temperature 68 | . 6 7 128 42 Received Heat Transfer . | . . . . . Siege Activations . | . . . . . Martial Activations . | . . . . . Shielding Activations . | . . . . . Robots Disrupted . | . . . . . Combat Hostiles . | . . . . . Robots Corrupted . | . . . . . Combat Hostiles . | . . . . . Parts Fried . | . . . . . Impact Corruptions . | . . . . . Robots Melted . | . . . . . Combat Hostiles . | . . . . . Parts Melted . | . . . . . Heat Transferred 37 | . 37 . . . Parts Sabotaged . | . . . . . Parts Stolen . | . . . . . Parts Stripped . | . . . . . Power Chain Reactions . | . . . . . Alert | -11 -10 -10 -10 -9 ------- Run | Yrd Mat Min Exi Min Maximum Alert Level . | . . . . . Low Security (%) 100 | 100 100 100 . 100 Level 1 . | . . . . . Level 2 . | . . . . . Level 3 . | . . . . . Level 4 . | . . . . . Level 5 . | . . . . . High Security . | . . . . . Max Security . | . . . . . Peak Influence 26 | . 14 15 . 26 Initial . | . . . . . Average 1 | . . . . 7 Influence Increases 90 | . 25 21 . 44 Destroy 0b10 Robot/NC 5 | . 5 . . . Destroy Structure 85 | . 20 21 . 44 Influence Decreases 90 | . 25 21 . 44 Time Decay 66 | . 25 17 . 24 Lost Part 24 | . . 4 . 20 Squads Dispatched . | . . . . . Investigation . | . . . . . Extermination . | . . . . . Reinforcement . | . . . . . Assault . | . . . . . Garrison . | . . . . . Intercept . | . . . . . Searches Triggered . | . . . . . Construction Impeded . | . . . . . Haulers Reinforced . | . . . . . Active Scanning Responses . | . . . . . Cargo Convoy Interrupts . | . . . . . Stealth | -11 -10 -10 -10 -9 --------- Run | Yrd Mat Min Exi Min Distress Signals 3 | . 1 . . 2 Communications Jammed . | . . . . . Distress Signals . | . . . . . Times Spotted 15 | . 2 . . 13 Peak Tracking Total 10 | . 1 . . 10 Tactical Retreats . | . . . . . Traps | -11 -10 -10 -10 -9 ------- Run | Yrd Mat Min Exi Min Traps Triggered 1 | . . 1 . . Indirectly . | . . . . . Trap Hack Attempts . | . . . . . Triggered . | . . . . . Disarmed . | . . . . . Reprogrammed . | . . . . . Reused . | . . . . . Traps Extracted . | . . . . . Installed . | . . . . . Triggered . | . . . . . Machines | -11 -10 -10 -10 -9 ---------- Run | Yrd Mat Min Exi Min Machines Disabled 1 | . . 1 . . Max in Single Turn 1 | . . 1 . . Machines Repaired . | . . . . . Machines Dismantled . | . . . . . Machines Sabotaged . | . . . . . Overloaded Fab Kills . | . . . . . Hacking | -11 -10 -10 -10 -9 --------- Run | Yrd Mat Min Exi Min Machines Accessed 3 | . 1 1 1 . Terminals 1 | . 1 . . . Fabricators . | . . . . . Repair Stations . | . . . . . Recycling Units . | . . . . . Scanalyzers . | . . . . . Garrison Access . | . . . . . Total Hacks 25 | . 1 1 23 . Successful 24 | . . 1 23 . Failed 1 | . 1 . . . Catastrophic . | . . . . . Database Lockouts . | . . . . . Manual . | . . . . . Terminals 1 | . 1 . . . Fabricators . | . . . . . Repair Stations . | . . . . . Recycling Units . | . . . . . Scanalyzers . | . . . . . Garrison Access . | . . . . . Terminal Hacks 24 | . . 1 23 . Record 23 | . . . 23 . Open Door 1 | . . 1 . . Fabricator Hacks . | . . . . . Repair Station Hacks . | . . . . . Recycling Unit Hacks . | . . . . . Scanalyzer . | . . . . . Garrison Access Hacks . | . . . . . Unauthorized Hacks . | . . . . . Terminals . | . . . . . Fabricators . | . . . . . Repair Stations . | . . . . . Recycling Units . | . . . . . Scanalyzers . | . . . . . Garrison Access . | . . . . . Data Cores Recovered . | . . . . . Used . | . . . . . Hacking Detections 1 | . 1 . . . Full Trace Events . | . . . . . Feedback Events . | . . . . . Feedback Blocked . | . . . . . Robot Schematics Acquired . | . . . . . Robots Built . | . . . . . Authchips . | . . . . . Time . | . . . . . Total Robot Build Rating . | . . . . . Part Schematics Acquired . | . . . . . Parts Built . | . . . . . Authchips . | . . . . . Time . | . . . . . Total Part Build Rating . | . . . . . Parts Repaired . | . . . . . Time . | . . . . . Parts Recycled . | . . . . . Recycled Matter . | . . . . . Retrieved Matter . | . . . . . Retrieved Components . | . . . . . Parts Scanalyzed . | . . . . . Part Schematics Acquired . | . . . . . Parts Damaged . | . . . . . Bothacking | -11 -10 -10 -10 -9 ------------ Run | Yrd Mat Min Exi Min Used RIF Installer . | . . . . . Robots Hacked . | . . . . . Non-combat . | . . . . . Combat . | . . . . . Robot Hacks Applied . | . . . . . Relay Couplers Released . | . . . . . Fabnet Peak Effective % . | . . . . . Robots Rewired . | . . . . . Allies Hacked . | . . . . . Hacks Repelled . | . . . . . Allies | -11 -10 -10 -10 -9 -------- Run | Yrd Mat Min Exi Min Total Allies . | . . . . . Largest Group . | . . . . . Highest-Rated Group . | . . . . . Highest-Rated Ally . | . . . . . Total Orders . | . . . . . Ally Attacks . | . . . . . Total Damage . | . . . . . Kills . | . . . . . Allies Corrupted . | . . . . . Allies Melted . | . . . . . Intel | -11 -10 -10 -10 -9 ------- Run | Yrd Mat Min Exi Min Active Infowar (turns) . | . . . . . Robot Analysis Total . | . . . . . Derelict Logs Recovered 2 | . . 1 . 1 Drone Launches . | . . . . . Drone Recoveries . | . . . . . Exploration | -11 -10 -10 -10 -9 ------------- Run | Yrd Mat Min Exi Min Turns Passed 1757 | 96 230 706 634 91 Spaces Moved 1040 | 57 131 418 395 39 Core 23 | 6 . 12 . 5 Treads 1014 | 48 131 406 395 34 Legs 3 | 3 . . . . Wheels . | . . . . . Hover . | . . . . . Flight . | . . . . . Fastest Speed 50 | 50 160 160 160 100 Average Speed 160 | 146 160 164 160 156 Slowest Speed 300 | 160 160 300 160 160 Overloaded Moves . | . . . . . Propulsion Burnouts . | . . . . . Robots Hopped . | . . . . . Potential Cave-ins 2 | . . . . 2 Cave-ins Triggered 1 | . . . . 1 Exploration Rate (%) 42 | 5 32 76 78 19 Regions Visited 4 Branch Regions 3 Pre-discovered Areas 1 | . . . 1 . Known Exits Taken . | . . . . . Unknown Exits Taken 4 | 1 1 1 1 . Scrap Searched 2 | . . 1 . 1 Spaces Dug 31 | . . 21 . 10 Terrain Destroyed 98 | . 18 29 . 51 Melee . | . . . . . Projectile . | . . . . . AOE 98 | . 18 29 . 51 Terrain Rammed . | . . . . . Walls Destroyed . | . . . . . Machines Disabled . | . . . . . Actions | -11 -10 -10 -10 -9 --------- Run | Yrd Mat Min Exi Min Total 1094 | 67 142 432 398 55 Wait . | . . . . . Move 1036 | 56 130 417 394 39 Hop . | . . . . . Pick Up 13 | 4 4 3 2 . Fast Attach 5 | 4 1 . . . Attach 7 | 2 . 1 1 3 Detach 1 | . . . . 1 Swap 6 | 1 2 1 . 2 Drop 6 | . . 5 1 . Fire 19 | . 5 4 . 10 Melee . | . . . . . Ram . | . . . . . Kick . | . . . . . Crush 1 | . . 1 . . Escape Stasis . | . . . . . Rewire . | . . . . . Trap . | . . . . . Miscellaneous . | . . . . . Route ------- -11/Scrapyard -10/Materials -10/Mines -10/Exiles -9/Mines History --------- Turn | Location | Event 9 | -11/Scrapyard | Discovered new exit (range 16) 97 | -11/Scrapyard | Entered Materials 98 | -10/Materials | Met a group of wandering Federalists 305 | -10/Materials | Build established: Mutant 305 | -10/Materials | Discovered new exit (range 13) 327 | -10/Materials | Entered Mines 403 | -10/Mines | Found a hidden stash of uninstalled traps 756 | -10/Mines | Received a Rocket Launcher from a helpful Derelict 774 | -10/Mines | Met a Derelict who couldn't figure out how to use a Trap Extractor 1027 | -10/Mines | Deemed a non-threat by the Exiles lab entrance 1027 | -10/Mines | Discovered new exit (range 5) 1033 | -10/Mines | Entered Exiles 1097 | -10/Exiles | Met 8R-AWN 1136 | -10/Exiles | Met EX-HEX 1198 | -10/Exiles | Met EX-DEC 1297 | -10/Exiles | Visited The Gauntlet 1494 | -10/Exiles | Learned location of Zion (-7) 1565 | -10/Exiles | Discovered new exit (range 14) 1667 | -10/Exiles | Entered Mines 1668 | -9/Mines | Assembled infested the area 1753 | -9/Mines | Core integrity fell below 50% 1758 | -9/Mines | Core integrity fell below 20% 1759 | -9/Mines | Crushed by falling debris 1759 | -9/Mines | Smashed by cave-in Last Messages --------------- 01720_ as-32370 destroyed. 01720_ Destroyed Asb. Hover Unit. 01722_ as-72234 destroyed. 01723_ The unstable cave ceiling collapses. 01724_ as-96550 destroyed. 01735_ as-60421 destroyed. 01739_ as-69310 destroyed. 01740_ The unstable cave ceiling collapses. 01745_ Ion Engine destroyed. 01746_ Assault Rifle destroyed. 01748_ The unstable cave ceiling collapses. 01748_ Rocket Launcher destroyed. 01749_ The unstable cave ceiling collapses. 01749_ Grenade Launcher destroyed. 01750_ The unstable cave ceiling collapses. 01750_ Lgt. Treads destroyed. 01753_ The unstable cave ceiling collapses. 01755_ Lgt. Assault Rifle destroyed. 01759_ The unstable cave ceiling collapses. 01759_ Crushed by falling debris. Map ----- +----------------------------------------------------+ | ??????????????????????????????????????????????? | | ??????????????????????????????????????????????? | | ??????????????????????????????????????????????? | | ??????????????????????????????????????????????? | | ??????????????????????????????????????????????? | | ??????????????????????????????????????????????? | | ??????????????????????????????????????????????? | | ??????????????????????????????????????????????? | | ??????????????????????????????????????????????? | | ?????????????????????????????###??????????????? | | ????????????????????????????# ??????????????? | | ???????????????????????????? #??????????????? | | ????????????????????????????# ##??##?????????? | | ???????????????????????????## ## ##????????? | | ??????????????????????????## ##???????? | | ?????????????????????????## #???????? | | ?????????????????????????# ?? | | ?????????????????????????# ## ?? | | ?????????????????????????## ##?? ?? | | ??????????????????????????# #????#### #??? | | ??????????????????######??# #?????????? ???? | | ??????????????????# ##?# %#???????????? ???? | | ??????????????????# ### #????????????????? | | ?????????????????## #????????????????? | | ?????????????????# #????????????????? | | ?????????????????# @ #####????????????????? | | ???????????##????# #??????????????????? | | ??????????## ??## #???#####??????????? | | ?????????## ## # #??????????? | | ?????????# d ????????? | | ?????????# d ????????? | | ?????????## " ????????? | | ??????????### ????????? | | ????????????## ?????????? | | ?????????????# ????????? | | ?????????????# # ?????????? | | ?????????????# # # ?????????? | | ?????????????## #### # # # ??????????? | | ??????????????# #??######?##???????????? | | ??????????????# #??????????????????????? | | ??????????????## #??????????????????????? | | ???????????????### ###??????????????????????? | | ????????????????### ?????????????????????????? | | ??????????????????# ?????????????????????????? | | ??????????????????# ?????????????????????????? | | ?????????????????? ?????????????????????????? | | ?????????????????? ?????????????????????????? | | ??????????????????????????????????????????????? | | ??????????????????????????????????????????????? | | ??????????????????????????????????????????????? | +----------------------------------------------------+ Best States ------------- Heat Dissipation 25 Energy Generation 10 Energy Capacity 350 Matter Stores 300 Matter Capacity 300 Sight Range 16 Terrain Scan Density 10 Evasion (%) 45 Targeting Accuracy 5 Recoil Reduction 2 Item Schematics ----------------- None Robot Schematics ------------------ None Fabricated ------------ Nothing Repaired ---------- Nothing Alien Tech Used ----------------- None Achievements -------------- Librarian Tourist Challenges ------------ None Game ------ Seed ReinforcedVoltaicArticulator Manual? 0 Play Time 00:15:32 Cumulative 3.3 hours Start 2025.07.24 @ 23:29:12 End 2025.07.24 @ 23:44:06 Sessions 1 Manual Loads 0 Difficulty Rogue Special Mode None Game No. 12 Rogue 12 Adventurer 0 Explorer 0 Win Type - Total 0 Types 0/0/0/0/0/0/0/0/0/0 Lore% 3 Gallery% 7 Achievement% 9 Wizard Run 0 Options --------- Layout 1 ASCII 0 Keyboard 0 Movement Numpad Keybinds 0 Fullscreen 1 Font 24/Smallcaps Map View 50x35 Zoom Use 0% Tactical HUD 1 Map Filters NONE Filters NONE Steam 1 RUN: bbeddda9-e69d-489b-ae7d-d636fc921e70